[Event "1000IM Saint Louis 2022"]
[Site "Saint Louis"]
[Date "2022.07.21"]
[Round "5.1"]
[White "Proleiko, Julian"]
[Black "Cervantes Landeiro, Thalia"]
[Result "0-1"]
[ECO "A29"]
[WhiteElo "2238"]
[BlackElo "2234"]
[Annotator "TA"]
[PlyCount "132"]
[EventDate "2022.07.20"]
[EventType "tourn"]
[EventCountry "USA"]
[SourceTitle "playchess.com"]
[Source "ChessBase"]
[SourceQuality "1"]
[TimeControl "5400+30"]

{[%evp 20,132,32,24,45,53,57,44,55,23,25,47,42,13,14,6,46,13,18,-69,-25,-20,-7,-10,-17,-2,0,0,0,0,0,-22,-22,-12,-23,0,3,-20,-29,-136,-91,-123,-8,-69,0,-5,0,0,0,0,0,0,0,0,0,0,0,0,0,0,0,0,0,0,0,-9,-10,-10,0,-3,0,-10,-10,-10,0,-42,-42,-42,-42,-42,-42,-52,-26,-26,-26,-26,0,0,0,0,0,0,0,0,0,0,0,-10,0,0,0,0,0,0,0,-12844,-12844,-12845,-12845,-12845,-12846,-12847,-12848,-12848,-12849]} 1. c4 {[%emt 0:00:04]} e5 {[%emt 0:00:07]} 2. g3 {[%emt 0:00:04]} Nf6 {[%emt 0:00:06]} 3. Bg2 {[%emt 0:00:06]} d5 {[%emt 0:00:15]} 4. cxd5 {[%emt 0:00:06]} Nxd5 {[%emt 0:00:06]} 5. Nc3 {[%emt 0:00:05]} Nb6 {[%emt 0:00:20]} 6. Nf3 {[%emt 0:00:07]} Nc6 {[%emt 0:00:47]} 7. O-O {[%emt 0:00:09]} Be7 {[%emt 0:04:02]} 8. d3 {[%emt 0:07:46]} O-O {[%emt 0:01:41]} 9. a3 {[%emt 0:04:24]} a5 {[%emt 0:06:54]} 10. Be3 {[%emt 0:00:27]} Re8 {[%emt 0:06:21]} 11. Rc1 {[%emt 0:01:59] [#]} Bf5 $146 {[%emt 0:10:58] A29: English Opening: Four Knights Variation with 4 g3.} ({Predecessor:} 11... Bf8 12. Na4 Nd5 13. Bc5 Bxc5 14. Rxc5 Nb6 15. Nd2 Bd7 16. Nxb6 cxb6 17. Rc3 Rc8 18. e3 Kh8 19. Qf3 {0-1 (35) Badelka,O (2448)-Xu,Y (2507) Chess.com INT 2022}) 12. Nd2 {[%emt 0:08:22]} Bf8 {[%emt 0:11:13]} 13. Re1 {[%emt 0:07:38]} Be6 {[%emt 0:05:06] White is slightly better.} 14. Na4 {[%emt 0:03:18]} Nxa4 {[%emt 0:09:22]} 15. Qxa4 {[%emt 0:00:02]} Bd5 {[%emt 0:00:42]} 16. Ne4 {[%emt 0:06:55]} f5 {[%emt 0:07:05]} 17. Nc3 {[%emt 0:02:59]} Bf7 {[%emt 0:04:13]} 18. Qb5 {[%emt 0:07:07]} Rb8 {[%emt 0:04:19]} 19. Na4 {[%emt 0:06:47]} ({White should try} 19. Bd5 $11) 19... Nd4 {[%emt 0:10:31]} (19... f4 $5 {[%cal Rf4e3]} 20. Bc5 (20. gxf4 exf4 21. Bxf4 Nd4 $15) 20... fxg3 21. hxg3 (21. fxg3 Nd4 $17) 21... Nd4 22. Bxd4 (22. Qxa5 $2 b6 $19) 22... exd4 $15) 20. Bxd4 {[%emt 0:00:22]} (20. Qxa5 Ra8 21. Qxc7 Rxa4 22. Qxb7 g6 $17) 20... c6 {[%emt 0:00:45]} 21. Bb6 {[%emt 0:02:51]} cxb5 {[%emt 0:00:08]} 22. Bxd8 {[%emt 0:00:03]} Rexd8 {[%emt 0:00:21]} 23. Nc5 {[%emt 0:01:31]} b6 {[%emt 0:02:26]} 24. Na6 {[%emt 0:00:04]} Rbc8 {[%emt 0:00:09]} 25. Bb7 {[%emt 0:02:43]} Rxc1 {[%emt 0:00:18]} 26. Rxc1 {[%emt 0:00:01]} e4 {[%emt 0:01:26]} 27. dxe4 {[%emt 0:10:45]} Bc4 {[%emt 0:02:40]} 28. e5 {[%emt 0:10:53]} Rd2 {[%emt 0:01:04]} 29. a4 {[%emt 0:02:31]} (29. e4 $11) 29... Rxe2 {[%emt 0:04:58]} ({But not} 29... Bxe2 30. axb5 Kf7 31. Rc7+ Be7 32. f4 $11) ({And not} 29... Rxb2 30. Nc7 $15) 30. axb5 {[%emt 0:00:10]} Bf7 {[%emt 0:00:50]} (30... Bxb5 $2 31. Bd5+ Kh8 32. Rc8 $18) ({Black should play} 30... Bb3 $17 31. Rc8 Rxe5) 31. f4 {[%emt 0:01:28]} (31. Nb8 $11) 31... Rxb2 {[%emt 0:01:21]} (31... g5 $1 $15 32. Rc6 gxf4 33. gxf4 Rxb2 34. Rxb6 a4) 32. Rc8 $11 {[%emt 0:02:22]} Be6 {[%emt 0:03:03]} 33. Ra8 {[%emt 0:07:11]} Kf7 {[%emt 0:00:25]} 34. Bc6 {[%emt 0:00:03]} a4 {[%emt 0:01:25] And now ...a3 would win.} 35. Be8+ $1 {[%emt 0:01:52]} Ke7 {[%emt 0:01:15]} 36. Nc7 {[%emt 0:00:15] Hoping for Bc6.} Bb3 {[%emt 0:01:02][%cal Oa4a3]} 37. Bc6 {[%emt 0:00:14] aiming for Re8+.} Kf7 {[%emt 0:00:39]} 38. e6+ {[%emt 0:00:23]} Bxe6 {[%emt 0:00:20]} 39. Nxe6 {[%emt 0:00:03]} Kxe6 {[%emt 0:00:29]} 40. Rxa4 {[%emt 0:05:45][%mdl 4096] Endgame KRB-KRB} ({Much worse is} 40. Rxf8 a3 41. Re8+ Kd6 42. Rd8+ Kc5 $17) 40... Bc5+ {[%emt 0:00:07]} 41. Kh1 {[%emt 0:00:05]} Kf6 {[%emt 0:00:12]} 42. Ra7 {[%emt 0:00:17]} h6 {[%emt 0:00:58]} 43. h4 {[%emt 0:00:48]} Rb1+ {[%emt 0:00:31]} 44. Kg2 {[%emt 0:00:04]} Rb2+ {[%emt 0:00:06]} 45. Kh1 {[%emt 0:00:29]} Bf2 {[%emt 0:01:01]} 46. Kg2 {[%emt 0:00:04]} Be1+ {[%emt 0:00:40]} 47. Kf3 {[%emt 0:00:24]} (47. Kh3 $5 {[%cal Rc6d5]}) 47... Rb3+ {[%emt 0:00:32]} 48. Ke2 $1 {[%emt 0:00:04]} Bxg3 {[%emt 0:00:35]} 49. Rb7 {[%emt 0:01:23]} Bxf4 {[%emt 0:00:29]} 50. Rxb6 {[%emt 0:00:03]} Be3 {[%emt 0:00:24]} 51. Bd5+ {[%emt 0:01:42]} Bxb6 {[%emt 0:00:03]} 52. Bxb3 {[%emt 0:00:02] KB-KB} g5 {[%emt 0:01:03]} 53. hxg5+ {[%emt 0:00:26]} hxg5 {[%emt 0:00:02] ...g4 is the strong threat.} 54. Bd5 {[%emt 0:01:01]} Ke5 {[%emt 0:00:04]} 55. Bc6 {[%emt 0:00:04]} Kf4 {[%emt 0:01:08]} 56. Bd7 $1 {[%emt 0:00:08]} g4 {[%emt 0:00:46] Strongly threatening ...Kg5.} 57. Kf1 $1 {[%emt 0:00:32]} Kg5 {[%emt 0:00:20] White must now prevent ...f4.} 58. Kg2 {[%emt 0:00:31]} f4 {[%emt 0:00:10][%cal Bf5f4,Bf4f3][%mdl 32] Threatens to win with ...f3+.} 59. Bc6 {[%emt 0:00:29]} Kh4 {[%emt 0:00:36]} 60. Bb7 {[%emt 0:00:19]} Kg5 {[%emt 0:00:47]} 61. Bc6 {[%emt 0:00:13]} Kf6 {[%emt 0:00:28]} 62. Bd7 $2 {[%emt 0:01:07][%mdl 8192]} (62. Bd5 $11) 62... f3+ $1 $19 {[%emt 0:00:14] Black is clearly winning.} 63. Kg3 {[%emt 0:00:03] [#]} Bc7+ $1 {[%emt 0:00:09]} 64. Kf2 {[%emt 0:00:04] [#]} Kg5 $1 {[%emt 0:00:18]} 65. Ke3 {[%emt 0:01:37]} Bb6+ {[%emt 0:00:11]} 66. Kd3 {[%emt 0:00:16]} g3 {[%emt 0:00:35] Weighted Error Value: White=0.13 (very precise) /Black=0.13 (very precise)} 0-1

[Event "1000IM Saint Louis 2022"]
[Site "Saint Louis"]
[Date "2022.07.21"]
[Round "5.2"]
[White "Williams, Justus"]
[Black "Sethuraman, Sandeep"]
[Result "1-0"]
[ECO "B12"]
[WhiteElo "2390"]
[BlackElo "2305"]
[Annotator "TA"]
[PlyCount "79"]
[EventDate "2022.07.20"]
[EventType "tourn"]
[EventCountry "USA"]
[SourceTitle "playchess.com"]
[Source "ChessBase"]
[SourceQuality "1"]
[TimeControl "5400+30"]

{[%evp 16,78,29,14,25,20,31,22,11,9,13,13,12,0,0,0,0,0,0,0,5,14,10,18,60,62,98,97,143,146,152,143,171,49,333,345,360,349,739,732,1076,1062,1037,1021,1912,1648,8539,7625,29974,29975,29973,12837,29991,29984,29984,29985,29985,29986,29986,29987,29987,29988,29987,12842,29999]} 1. e4 {[%emt 0:02:57]} c6 {[%emt 0:00:41]} 2. d4 {[%emt 0:00:07]} d5 {[%emt 0:00:15]} 3. e5 {[%emt 0:00:14]} Bf5 {[%emt 0:00:06]} 4. c4 {[%emt 0:00:40]} e6 {[%emt 0:01:17]} 5. Nc3 {[%emt 0:00:24]} dxc4 {[%emt 0:06:57]} 6. Bxc4 {[%emt 0:00:50]} Nd7 {[%emt 0:00:28]} 7. Nge2 {[%emt 0:00:53]} Ne7 {[%emt 0:08:27]} 8. O-O {[%emt 0:03:01] 8.Ng3 is more fashionable.} Nb6 {[%emt 0:04:32]} 9. Bb3 {[%emt 0:00:22]} Qd7 {[%emt 0:02:14] B12: Caro-Kann: Advance Variation.} 10. Be3 {[%emt 0:08:27]} Bg6 {[%emt 0:09:39] [#]} 11. Qd2 $146 {[%emt 0:08:23]} ({Predecessor:} 11. f3 Ned5 12. Bf2 Nxc3 13. bxc3 Be7 14. c4 O-O 15. Nc3 Qc7 16. f4 a5 17. a4 {1-0 (40) Smith,A (2252)-Plueg,A (2313) Birmingham 2000}) 11... Ned5 {[%emt 0:09:12] The position is equal.} 12. Ng3 {[%emt 0:05:55]} Be7 {[%emt 0:02:40]} 13. Bg5 {[%emt 0:03:05]} O-O {[%emt 0:10:50]} 14. h4 {[%emt 0:07:56]} h6 {[%emt 0:06:41]} 15. Bxe7 {[%emt 0:03:04]} Qxe7 {[%emt 0:03:55]} 16. h5 {[%emt 0:02:14]} Bh7 {[%emt 0:00:05]} 17. Nce4 {[%emt 0:02:43]} Bxe4 {[%emt 0:05:27]} 18. Nxe4 {[%emt 0:01:01]} Qh4 {[%emt 0:00:10][%csl LRe4,LRh5]} 19. Qe2 {[%emt 0:02:31]} Rad8 {[%emt 0:04:11]} 20. g3 {[%emt 0:02:50] Against Nf4} Qh3 {[%emt 0:02:44]} 21. Rad1 {[%emt 0:03:15]} Ne7 {[%emt 0:05:14]} (21... Rd7 $142) 22. Rd3 $1 $16 {[%emt 0:01:11] White is more active.} Nbd5 {[%emt 0:04:52]} 23. a3 {[%emt 0:02:17] Inhibits Nb4.} b6 {[%emt 0:03:14]} 24. Bc2 {[%emt 0:03:12]} (24. f4 $1 $18 {aiming for g4.} Qf5 25. Nd6) 24... Rd7 $2 {[%emt 0:01:57][%mdl 8192] [#] Black cannot hold the game after this.} (24... f5 $1 $14 25. exf6 Nxf6) 25. f4 $1 $18 {[%emt 0:07:00]} Nf5 {[%emt 0:04:01][%cal Oc6c5] [#]} 26. Rf2 $1 {[%emt 0:02:48][%cal Bf1f2,Bf2h2,Bh2g2][%mdl 32]} Nxd4 $2 {[%emt 0:02:01]} (26... Nde3 27. Rxe3 Nxd4) 27. Rxd4 {[%emt 0:00:16]} Nxf4 {[%emt 0:00:06] [#]} 28. gxf4 $1 {[%emt 0:00:32]} Rxd4 {[%emt 0:00:07]} 29. Rh2 {[%emt 0:00:14]} Qf5 {[%emt 0:01:20] [#]} 30. Nf6+ $1 {[%emt 0:00:07][%mdl 576] Discovered Attack} gxf6 {[%emt 0:00:04]} (30... Kh8 31. Bxf5) 31. Bxf5 {[%emt 0:00:41]} exf5 {[%emt 0:00:09]} 32. Rg2+ {[%emt 0:00:31]} Kh8 {[%emt 0:00:32]} 33. Qc2 {[%emt 0:00:10]} Rxf4 {[%emt 0:01:59]} 34. Qxc6 {[%emt 0:00:07]} Rg4 {[%emt 0:00:04]} 35. Qxf6+ {[%emt 0:00:32]} Kg8 {[%emt 0:00:01]} 36. Rxg4+ {[%emt 0:00:25]} fxg4 {[%emt 0:00:08]} 37. Qxh6 {[%emt 0:00:03]} Re8 {[%emt 0:00:12]} 38. Qg5+ {[%emt 0:00:07]} Kh7 {[%emt 0:00:09]} 39. h6 {[%emt 0:00:24]} (39. Qf6 $142 Rg8 40. Qxf7+ Rg7 41. Qf5+ Kg8 42. e6 Rc7 43. Qg5+ Rg7 44. Qe5) 39... a5 {[%emt 0:00:09]} 40. Qg7# {[%emt 0:00:04] Weighted Error Value: White=0.09 (flawless) /Black=1.12} 1-0

[Event "1000IM Saint Louis 2022"]
[Site "Saint Louis"]
[Date "2022.07.21"]
[Round "5.3"]
[White "Stefanov, Emil"]
[Black "Tokhirjonova, Gulrukhbegim"]
[Result "1/2-1/2"]
[ECO "D37"]
[WhiteElo "2342"]
[BlackElo "2329"]
[Annotator "TA"]
[PlyCount "117"]
[EventDate "2022.07.20"]
[EventType "tourn"]
[EventCountry "USA"]
[SourceTitle "playchess.com"]
[Source "ChessBase"]
[SourceQuality "1"]
[TimeControl "5400+30"]

{[%evp 9,117,30,30,25,37,35,25,6,27,29,27,29,43,25,39,27,45,39,59,18,22,16,16,22,37,32,57,26,43,29,21,23,57,33,67,73,60,66,75,86,173,167,174,170,168,170,164,168,189,127,127,105,115,91,198,197,172,175,176,145,154,141,154,54,57,50,47,47,50,54,52,43,62,0,0,0,0,0,0,0,0,0,0,0,22,0,0,0,0,0,0,0,0,0,0,0,0,0,0,0,0,0,0,0,0,0,0,0,0,0]} 1. d4 {[%emt 0:00:10]} Nf6 {[%emt 0:02:10]} 2. c4 {[%emt 0:00:15]} e6 {[%emt 0:00:16]} 3. Nf3 {[%emt 0:00:05]} d5 {[%emt 0:01:21]} 4. Nc3 {[%emt 0:00:10]} a6 {[%emt 0:01:32]} 5. cxd5 {[%emt 0:00:26]} exd5 {[%emt 0:00:27]} 6. Bg5 {[%emt 0:00:09] D37: Queen's Gambit Declined: 5 Bf4.} Be6 {[%emt 0:02:21]} 7. e3 {[%emt 0:02:06]} h6 {[%emt 0:01:45]} 8. Bf4 {[%emt 0:05:37] White has an edge.} Nbd7 {[%emt 0:06:07]} 9. Bd3 {[%emt 0:00:10]} g5 {[%emt 0:01:23]} 10. Bg3 {[%emt 0:00:09]} Nh5 {[%emt 0:00:39]} 11. Qc2 {[%emt 0:00:08]} Nxg3 {[%emt 0:00:57]} 12. hxg3 {[%emt 0:00:07]} Bg7 {[%emt 0:01:40]} 13. Na4 {[%emt 0:00:31]} c6 {[%emt 0:06:04]} 14. Rc1 {[%emt 0:16:57]} Qe7 {[%emt 0:06:00]} 15. a3 {[%emt 0:13:24] [#]} a5 $146 {[%emt 0:06:07]} ({Predecessor:} 15... O-O 16. Bh7+ Kh8 17. Bf5 Kg8 18. O-O b5 19. Nc3 Rac8 20. Rfe1 Bxf5 21. Qxf5 Qe6 {½-½ (29) Strutinskaya,G (2196)-Ankudinova,E (2051) Bucharest 2019}) 16. Qb3 {[%emt 0:02:08]} b5 {[%emt 0:05:49]} 17. Nc5 {[%emt 0:01:02]} Bg4 {[%emt 0:04:22]} 18. Nxd7 {[%emt 0:02:39]} Bxd7 {[%emt 0:04:56]} 19. O-O {[%emt 0:06:21]} O-O {[%emt 0:04:44]} 20. Rc5 {[%emt 0:02:07]} a4 {[%emt 0:01:27]} 21. Qc2 {[%emt 0:05:31]} Rfb8 {[%emt 0:08:51]} 22. Bh7+ {[%emt 0:02:16]} Kh8 {[%emt 0:03:24]} 23. Bf5 {[%emt 0:00:06] Inhibits Qe6.} Be8 {[%emt 0:00:52]} 24. e4 {[%emt 0:03:18] White is more active.} g4 {[%emt 0:06:11]} (24... dxe4 $16 25. Bxe4 (25. Qxe4 Qxe4 26. Bxe4 Bf8 $11) 25... Ra6) 25. Ne5 $1 $18 {[%emt 0:01:54]} (25. Bxg4 Qxe4 26. Qxe4 dxe4 $11) 25... Bxe5 {[%emt 0:01:58]} 26. dxe5 {[%emt 0:00:08]} Qxe5 {[%emt 0:00:35]} 27. exd5 {[%emt 0:01:21]} cxd5 {[%emt 0:00:16]} 28. Bxg4 {[%emt 0:00:22]} b4 {[%emt 0:01:18]} 29. Bf3 {[%emt 0:05:15]} (29. Rd1 $1 $18) 29... bxa3 $16 {[%emt 0:03:26]} 30. bxa3 {[%emt 0:00:09]} Rb5 {[%emt 0:02:09]} 31. Rd1 {[%emt 0:01:09] And now Rxb5 would win.} Rd8 {[%emt 0:02:22]} (31... Qb2 $16 {keeps fighting.}) 32. Rxb5 $1 $18 {[%emt 0:11:34]} Bxb5 {[%emt 0:00:09]} 33. Qc5 {[%emt 0:02:25][%csl LRb5,LRd5]} Bc4 {[%emt 0:03:45]} 34. Qa5 {[%emt 0:05:06]} Rb8 {[%emt 0:04:02] [#]} 35. Re1 $1 {[%emt 0:00:44]} (35. Bxd5 Bb3 36. Rd3 (36. Rb1 $2 Qf5 $19) 36... Bc4 $11) 35... Qd4 {[%emt 0:03:39] [#]} 36. Qxa4 {[%emt 0:05:33]} ({But not} 36. Rd1 Qe5 $16) (36. Qc7 $1 $16 {[%cal Rc7b8]} Rb2 37. Kh2) 36... Rb2 $14 {[%emt 0:00:18]} 37. Qe8+ {[%emt 0:03:09]} Kg7 {[%emt 0:00:03]} 38. Re3 {[%emt 0:00:40] aiming for Bh5. Really sharp!} ({Don't go for} 38. Re7 $2 Qxf2+ 39. Kh2 Qxf3 $19) 38... Rb1+ {[%emt 0:01:52]} (38... Qd2 $2 39. Qe5+ Kg8 40. Kh2 Qxf2 41. Qf4 $18) 39. Kh2 {[%emt 0:00:06]} Qa1 {[%emt 0:00:17][%csl Ga1][%cal Rb1h1]} 40. g4 {[%emt 0:00:41]} Qf6 {[%emt 0:00:52][%cal Rf6h4]} 41. Qe7 {[%emt 0:02:12]} (41. Kg3 $14) 41... Ra1 $11 {[%emt 0:00:41] The position is equal.} 42. Qxf6+ {[%emt 0:00:32]} Kxf6 {[%emt 0:00:02][%mdl 4096] Endgame KRB-KRB} 43. Kg3 {[%emt 0:00:24]} Ra2 {[%emt 0:00:25]} 44. Rc3 {[%emt 0:01:13]} Ke5 {[%emt 0:00:22]} 45. Re3+ {[%emt 0:00:13]} Kf6 {[%emt 0:00:10]} 46. Bd1 {[%emt 0:02:00]} d4 {[%emt 0:00:26]} 47. Rf3+ {[%emt 0:00:06]} Ke5 {[%emt 0:00:25]} 48. Bb3 {[%emt 0:00:12]} Bxb3 {[%emt 0:00:35]} 49. Rxb3 {[%emt 0:00:03] KR-KR} Kd5 {[%emt 0:00:41]} 50. Kf3 {[%emt 0:01:40]} Kc4 {[%emt 0:00:22]} 51. Rb7 {[%emt 0:00:05]} Kd3 {[%emt 0:01:56]} ({Resist} 51... Rxa3+ 52. Ke4 $16) 52. Rxf7 {[%emt 0:00:05]} Rxa3 {[%emt 0:00:05] Hoping for ...Kc2+.} 53. Rd7 {[%emt 0:01:24]} Kd2+ {[%emt 0:00:08]} 54. Ke4 {[%emt 0:00:11]} d3 {[%emt 0:00:03] Threatens to win with ...Ke2.} 55. f4 {[%emt 0:00:19]} Ke2 {[%emt 0:01:12] ...d2 is the strong threat.} 56. g5 {[%emt 0:00:45]} hxg5 {[%emt 0:00:53]} 57. fxg5 {[%emt 0:00:03]} d2 {[%emt 0:00:21]} 58. Rxd2+ {[%emt 0:01:12]} Kxd2 {[%emt 0:00:01]} 59. g6 {[%emt 0:00:26] White really could win this.  Weighted Error Value: White=0.08 (flawless) /Black=0.09 (flawless)} 1/2-1/2

[Event "1000IM Saint Louis 2022"]
[Site "Saint Louis"]
[Date "2022.07.21"]
[Round "5.4"]
[White "Altman, Joshua"]
[Black "Wang, Tianqi"]
[Result "1/2-1/2"]
[ECO "A56"]
[WhiteElo "2162"]
[BlackElo "2402"]
[Annotator "TA"]
[PlyCount "62"]
[EventDate "2022.07.20"]
[EventType "tourn"]
[EventCountry "USA"]
[SourceTitle "playchess.com"]
[Source "ChessBase"]
[SourceQuality "1"]
[TimeControl "5400+30"]

{[%evp 9,62,64,62,52,50,54,60,5,113,103,105,118,100,76,83,77,98,62,50,66,62,41,46,35,62,23,54,34,56,25,39,51,94,62,101,29,118,104,110,133,137,71,133,131,187,141,183,64,58,0,157,150,145,126,147]} 1. d4 {[%emt 0:00:02][%cal Bd2d4,Bd4d5][%mdl 32]} Nf6 {[%emt 0:00:30]} 2. c4 {[%emt 0:00:03]} c5 {[%emt 0:00:29]} 3. d5 {[%emt 0:00:04]} a6 {[%emt 0:00:48]} 4. a4 {[%emt 0:00:12]} e6 {[%emt 0:00:05]} 5. Nc3 {[%emt 0:00:03]} Qe7 {[%emt 0:00:07]} 6. Nf3 {[%emt 0:00:27] A56: Czech Benoni.} d6 {[%emt 0:00:07]} 7. g3 {[%emt 0:00:31]} exd5 {[%emt 0:00:04] [#]} 8. Bg5 $146 {[%emt 0:00:54]} (8. cxd5 $14 g6 9. Bg2) ({Predecessor:} 8. cxd5 g6 9. Bg2 Bg7 10. O-O O-O 11. Qb3 Nbd7 12. Re1 Ne4 13. Nxe4 Qxe4 14. Bf4 {1-0 (49) Erigaisi,A (2634)-Shahinyan,D (2469) Tsaghkadzor 2021}) 8... Be6 {[%emt 0:04:19]} (8... dxc4 $11 9. Nd5 Qd8) 9. cxd5 $16 {[%emt 0:04:00]} ({Much less strong is} 9. Nxd5 Bxd5 10. cxd5 Nbd7 $14) 9... Bg4 {[%emt 0:09:17]} 10. Nd2 {[%emt 0:06:59]} Nbd7 {[%emt 0:09:36]} 11. Bg2 {[%emt 0:05:47]} h6 {[%emt 0:01:33]} 12. Bxf6 {[%emt 0:06:57]} Qxf6 {[%emt 0:13:32]} 13. h3 {[%emt 0:04:08]} Bf5 {[%emt 0:00:49]} 14. O-O {[%emt 0:04:29]} g5 {[%emt 0:02:32]} 15. e4 {[%emt 0:10:12]} Bh7 {[%emt 0:01:01]} 16. Nc4 {[%emt 0:05:17]} Be7 {[%emt 0:08:27]} 17. Ne3 {[%emt 0:13:21] White is more active.} h5 {[%emt 0:04:30]} 18. Qe2 {[%emt 0:18:09]} h4 {[%emt 0:01:22]} 19. gxh4 {[%emt 0:06:35]} Qf4 {[%emt 0:15:41]} 20. h5 {[%emt 0:02:54]} Ne5 {[%emt 0:01:49]} 21. Ng4 $36 {[%emt 0:01:19][%mdl 2048] Black is under pressure.} Bf6 {[%emt 0:04:51]} 22. Qe3 {[%emt 0:03:39]} (22. f3 $16) 22... Nxg4 {[%emt 0:02:03]} (22... Bg7 $11 {remains equal.}) 23. Qxf4 {[%emt 0:00:04]} ({Inferior is} 23. hxg4 Qxg4 24. Qg3 Qxh5 25. Qxd6 Bd4 $15) 23... gxf4 {[%emt 0:00:08]} 24. hxg4 {[%emt 0:00:01]} Ke7 {[%emt 0:00:34]} 25. a5 {[%emt 0:03:37]} (25. Rfb1 $142) 25... Bd4 {[%emt 0:01:15]} ({Better is} 25... Rag8 26. f3 Bd4+ 27. Kh2 f5 28. exf5 Bxf5) 26. Rfe1 {[%emt 0:01:00]} f6 {[%emt 0:07:34]} (26... Kf6 $16 27. Ne2 Bxb2) 27. Ra2 {[%emt 0:02:43]} (27. Ra3 $18) 27... Bg8 28. Na4 {[%emt 0:00:00]} (28. Ne2 $18) 28... Bf7 $14 {[%emt 0:00:26] [#] White must now prevent ...Rag8.} 29. Bf3 {[%emt 0:00:05]} (29. Kf1 $1 $14) 29... Be8 $2 {[%emt 0:00:52]} (29... Rag8 $11 30. Kh2 Bxf2) 30. Nb6 $16 {[%emt 0:00:17]} Rb8 {[%emt 0:00:32]} 31. b3 {[%emt 0:00:35]} Bb5 {[%emt 0:00:45] Weighted Error Value: White=0.27 (precise) /Black=0.33} 1/2-1/2

[Event "1000IM Saint Louis 2022"]
[Site "Saint Louis"]
[Date "2022.07.21"]
[Round "5.5"]
[White "Nyzhnyk, Illya"]
[Black "Kozelov, Roman"]
[Result "1-0"]
[ECO "D07"]
[WhiteElo "2686"]
[BlackElo "2104"]
[Annotator "TA"]
[PlyCount "33"]
[EventDate "2022.07.20"]
[EventType "tourn"]
[EventCountry "USA"]
[SourceTitle "playchess.com"]
[Source "ChessBase"]
[SourceQuality "1"]
[TimeControl "5400+30"]

{[%evp 9,33,63,170,176,167,166,171,95,161,153,145,181,179,181,196,183,321,322,389,287,287,290,277,277,314,293]} 1. d4 {[%emt 0:00:03]} d5 {[%emt 0:07:58]} 2. c4 {[%emt 0:00:07]} Nc6 {[%emt 0:00:17]} 3. Nf3 {[%emt 0:02:29]} Bg4 {[%emt 0:06:09]} 4. Nc3 {[%emt 0:00:11]} Nf6 {[%emt 0:01:09]} 5. Ne5 {[%emt 0:01:52]} dxc4 {[%emt 0:01:10]} (5... Nxe5 $14 6. dxe5 d4) 6. Nxg4 $18 {[%emt 0:07:26] D07: Queen's Gambit: Chigorin Defence.} Nxg4 {[%emt 0:00:58] [#]} 7. d5 {[%emt 0:00:04]} ({But not} 7. e3 $6 Nf6 $14) 7... Nb8 {[%emt 0:00:39] [#]} 8. Bf4 $146 {[%emt 0:07:45]} (8. e4 $18 Ne5 9. f4 Nd3+ 10. Bxd3 cxd3 11. Qxd3) ({Predecessor:} 8. e4 Ne5 9. Bf4 Nbd7 10. Qa4 c6 11. dxc6 Nxc6 12. Bxc4 e5 13. Be3 Bc5 14. Bxf7+ Kxf7 {1-0 (24) Graf,A (2635)-Braun,R (1931) Schwaebisch Gmuend 2009}) 8... g5 {[%emt 0:02:08]} (8... Nd7 $16) 9. Bxg5 {[%emt 0:00:47]} Rg8 {[%emt 0:00:43]} 10. Bf4 {[%emt 0:00:57]} Bg7 {[%emt 0:00:20]} 11. e4 {[%emt 0:01:38][%csl LRc4,LRg4]} Ne5 {[%emt 0:00:29]} 12. Qh5 {[%emt 0:00:31][%csl LRe5,LRh7]} Nd3+ {[%emt 0:00:42]} (12... Nbd7 {was called for.} 13. Rd1 (13. Qxh7 Kf8 $16) 13... b5 14. Qxh7 (14. Nxb5 Qb8 $14) 14... Kf8) 13. Bxd3 {[%emt 0:00:07]} cxd3 {[%emt 0:00:03]} 14. Qxh7 {[%emt 0:00:07]} Kf8 {[%emt 0:02:29] White has a decisive advantage.} 15. Rd1 {[%emt 0:00:17]} Nd7 {[%emt 0:00:35]} 16. Rxd3 {[%emt 0:00:23]} Nf6 {[%emt 0:00:41]} 17. Qh3 {[%emt 0:00:33] Weighted Error Value: White=0.12 (very precise) /Black=0.29 (precise)} 1-0